bitfinex-derivatives/quotes_ETHF0:USTF0_20250908
["timestamp","ask_amount","ask_price","bid_price","bid_amount"]
[1757321712927,0.4173,4300.2,4300.1,3.7371]
[1757321713132,0.7292,4300.2,4300.1,0.5293]
[1757321713932,0.7292,4300.2,4300.1,0.7398]
[1757321716543,0.4173,4300.2,4300.1,0.7398]
[1757321716841,0.4173,4300.2,4300.1,0.5293]
[1757321716842,0.7292,4300.2,4300.1,0.5293]
[1757321717039,0.7292,4300.2,4300.1,0.3222]
[1757321717538,0.7292,4300.2,4300.1,0.5293]
[1757321719245,0.7292,4300.2,4300.1,0.7398]
[1757321722044,0.4173,4300.2,4300.1,0.7398]
[1757321724749,0.7292,4300.2,4300.1,0.7398]
[1757321732557,0.4173,4300.2,4300.1,0.7398]
[1757321734460,0.7292,4300.2,4300.1,0.7398]
[1757321736160,0.7292,4300.2,4300.1,1.03882088]
[1757321739863,0.7292,4300.2,4300.1,1.21014241]
[1757321741371,0.7292,4300.2,4300.1,2.0430606]
[1757321741667,0.7292,4300.2,4300.1,2.04351604]
[1757321742368,0.6543,4300.2,4300.1,1.21059785]
[1757321742573,0.4471,4300.2,4300.1,0.9112301]
[1757321742764,0.1162,4300.3,4300.2,0.7354]
[1757321743068,3.2078,4301.2,4301.0,0.8562]
[1757321743069,0.511,4301.1,4301.0,0.8562]
[1757321743269,0.511,4301.1,4301.0,1.0276301]
[1757321743270,0.9493,4301.1,4301.0,1.0276301]
[1757321749373,0.9493,4301.1,4301.0,0.9068301]
[1757321751668,0.9493,4301.1,4301.0,1.0276301]
[1757321752069,1.25177653,4301.9,4301.7,0.4148]
[1757321752271,0.3038,4302.4,4302.0,0.8562]
[1757321752469,0.511,4302.2,4302.1,0.17109186]
[1757321752770,0.7123,4302.2,4302.1,0.38369186]
[1757321753075,0.7123,4302.2,4302.1,0.70429186]
[1757321753265,0.7123,4302.2,4302.1,0.7354]
[1757321756075,0.237,4302.3,4302.2,0.4148]
[1757321756076,0.4085,4302.3,4302.2,0.4148]
[1757321756276,0.9493,4302.3,4302.2,0.7354]
[1757321758179,0.2072,4301.8,4301.7,0.7354]
[1757321758370,0.748,4301.8,4301.7,1.13863298]
[1757321758864,0.748,4301.8,4301.7,0.90618298]
[1757321761772,0.237,4301.8,4301.7,0.90618298]
[1757321762574,0.237,4301.8,4301.7,0.7354]
[1757321765583,0.237,4301.8,4301.7,0.90618411]
[1757321767581,3.2078,4302.5,4302.4,0.4194]
[1757321767787,3.4448,4302.5,4302.4,0.7353]
[1757321767980,3.6577,4302.5,4302.4,0.7353]
[1757321768184,3.9639,4302.5,4302.4,0.7353]
[1757321768385,4.1801,4302.5,4302.4,0.7353]
[1757321769891,3.2078,4302.5,4302.4,0.7353]
[1757321770089,2.08629422,4303.8,4302.4,0.7353]
[1757321770090,1.46467653,4303.4,4303.3,0.4194]
[1757321770295,0.7353,4303.4,4303.3,0.7353]
[1757321770597,0.9713,4303.4,4303.3,0.7353]
[1757321771297,0.9713,4303.4,4303.0,0.1259]
[1757321771495,0.9713,4303.4,4303.1,0.3159]
[1757321772199,0.9713,4303.4,4303.0,0.1259]
[1757321772494,0.9713,4303.4,4303.1,0.3159]
[1757321772697,0.9713,4303.4,4303.0,0.1259]
[1757321772894,2.22307653,4303.4,4303.0,0.1259]
[1757321773296,2.22307653,4303.4,4303.1,0.3159]
[1757321773695,2.22307653,4303.4,4303.0,0.1259]
[1757321773890,2.22307653,4303.4,4303.3,0.209]
[1757321774098,2.22307653,4303.4,4303.3,0.5249]
[1757321776090,2.22307653,4303.4,4303.0,0.1259]
[1757321776295,0.127,4302.5,4302.4,2.9988]
[1757321776499,1.0983,4302.5,4301.8,3.2078]
[1757321776796,0.2129,4302.0,4301.9,0.37967082]
[1757321776999,0.5191,4302.0,4301.9,0.59007082]
[1757321778297,0.5191,4302.4,4302.3,0.4194]
[1757321778496,0.5191,4302.4,4302.3,0.7353]
[1757321779205,0.5191,4302.4,4302.3,0.90608899]
[1757321779499,0.7353,4302.4,4302.3,0.209]
[1757321780309,0.7353,4302.4,4302.3,0.37985726]
[1757321780802,0.7353,4302.4,4302.3,0.17085726]
[1757321781007,0.363,4302.5,4301.8,3.2078]
[1757321781008,0.7353,4301.9,4301.8,3.2078]
[1757321781305,0.7353,4301.9,4301.8,0.17091393]
[1757321782907,0.7353,4301.3,4301.2,3.4168]
[1757321783106,0.7353,4301.3,4301.2,4.11414778]
[1757321786410,0.3062,4301.8,4301.7,0.4194]
[1757321786612,0.3062,4301.8,4301.7,0.7353]
[1757321787108,0.5191,4301.8,4301.7,0.7353]
[1757321788712,0.3062,4301.8,4301.7,0.7353]
[1757321789108,0.3062,4301.8,4301.7,0.90624742]
[1757321789304,0.4224,4301.9,4301.8,0.3159]
[1757321789603,0.1162,4301.9,4301.8,0.7353]
[1757321791011,0.4224,4301.9,4301.8,0.7353]
[1757321791210,0.6353,4301.9,4301.8,0.7353]
[1757321791411,0.8515,4301.9,4301.8,0.7353]
[1757321791814,0.8515,4301.9,4301.8,0.4194]
[1757321792310,0.8515,4301.9,4301.8,0.7353]
[1757321792512,0.8515,4301.9,4301.8,0.90628152]
[1757321794013,0.8515,4301.9,4301.8,0.37998152]
[1757321796416,0.8515,4301.9,4301.8,0.57498152]
[1757321796618,0.8515,4301.9,4301.8,0.88888152]
[1757321798216,0.1162,4301.9,4301.8,0.88888152]
[1757321806113,0.1162,4301.9,4301.8,1.12488152]
[1757321806325,0.1162,4301.9,4301.8,1.42555322]
[1757321809418,0.1162,4301.9,4301.8,1.18955322]
[1757321809623,0.4293,4301.9,4301.8,1.42555322]
[1757321810112,0.1162,4301.9,4301.8,1.42555322]
[1757321810311,0.1162,4301.9,4301.8,1.42573098]
[1757321810924,0.1162,4301.9,4301.8,1.42573065]
[1757321812426,0.1162,4301.9,4301.8,1.12488152]
[1757321813325,0.1162,4301.9,4301.8,1.42569588]
[1757321813520,0.1162,4301.9,4301.8,1.42612093]
[1757321814826,0.1162,4301.9,4301.8,1.19012093]
[1757321815031,1.25248568,4302.6,4301.8,1.19012093]
[1757321815321,0.511,4302.5,4302.4,0.7238]
[1757321815526,0.6319,4302.5,4302.4,0.89519441]
[1757321815728,0.845,4302.5,4302.4,0.89519441]
[1757321816528,0.845,4302.5,4302.4,0.58129441]
[1757321816828,0.845,4302.5,4302.4,0.89519441]
[1757321822028,0.845,4302.5,4302.4,0.17139441]
[1757321822428,0.845,4302.5,4302.4,0.38629441]
[1757321822933,0.845,4302.5,4302.4,0.58129441]
[1757321823226,0.845,4302.5,4302.4,0.58122818]
[1757321825630,0.845,4302.5,4302.4,0.88482818]
[1757321825829,0.3131,4302.5,4302.4,0.88482818]
[1757321826041,0.5477,4303.0,4302.9,0.3985]
[1757321826238,0.5477,4303.0,4302.9,0.87342818]
[1757321826629,0.8419,4303.0,4302.9,0.87342818]
[1757321828139,0.8419,4303.0,4302.9,0.56982818]
[1757321828342,0.8419,4303.0,4302.9,0.17132818]
[1757321828747,0.3346,4303.5,4303.4,0.3985]
[1757321828936,0.6288,4303.5,4303.4,4.08122818]
[1757321829730,0.5018,4303.5,4303.4,3.9099]
[1757321830049,0.2942,4303.5,4303.4,3.9099]
[1757321833037,0.78593981,4303.5,4303.4,3.9099]
[1757321833445,0.99353981,4303.5,4303.4,3.9099]
[1757321833642,1.11053981,4303.5,4303.4,3.9099]
[1757321833946,1.32363981,4303.5,4303.4,3.9099]
[1757321834943,1.11053981,4303.5,4303.4,3.9099]
[1757321835148,0.99353981,4303.5,4303.4,3.9099]
[1757321836244,1.32363981,4303.5,4303.4,3.9099]
[1757321839250,1.32363981,4303.5,4303.4,4.1459]
[1757321841255,1.32363981,4303.5,4303.4,3.2078]
[1757321842755,0.8319,4303.5,4303.4,3.2078]
[1757321844557,0.8319,4303.5,4303.4,3.407]
[1757321848967,0.8319,4303.5,4303.4,3.2078]
[1757321849862,0.8319,4303.5,4303.4,3.407]
[1757321853070,0.8319,4303.5,4303.2,0.0697]
[1757321857174,5.29218568,4303.5,4303.2,0.0697]
[1757321857372,1.25248568,4303.4,4303.2,0.0697]
[1757321857566,0.7143,4303.3,4303.2,0.0697]
[1757321857968,0.7143,4303.3,4302.8,3.2078]
[1757321858170,0.7143,4302.9,4302.8,3.2078]
[1757321861772,0.7143,4302.9,4302.8,3.4216]
[1757321864669,0.7143,4302.9,4302.8,3.2078]
[1757321866280,7.9221,4302.9,4302.6,0.0566]
[1757321866477,0.4107,4302.7,4302.6,0.0566]
[1757321866678,0.7143,4302.7,4302.6,0.0566]
[1757321866874,0.7143,4302.7,4302.5,0.00348606]
[1757321869288,0.7143,4302.7,4302.6,0.2138]
[1757321870189,0.4997,4302.7,4302.6,0.7221]
[1757321870382,0.5396,4302.7,4302.6,0.7221]
[1757321871187,0.7357,4302.7,4302.6,0.7221]
[1757321872490,0.9503,4302.7,4302.6,0.4268]
[1757321872892,1.44662601,4302.7,4302.6,0.4268]
[1757321873392,0.49632601,4302.7,4302.6,0.7221]
[1757321873692,0.4997,4302.7,4302.6,0.7221]
[1757321875795,0.7143,4302.7,4302.6,0.7221]
[1757321876195,0.7143,4302.7,4302.6,0.4268]
[1757321877400,1.21084181,4302.7,4302.6,0.4268]
[1757321881301,1.21084181,4302.7,4302.6,0.2138]
[1757321882208,1.21084181,4302.7,4302.6,0.7221]
[1757321882801,1.21084181,4302.7,4302.6,0.2138]
[1757321889206,1.21084181,4302.7,4302.5,0.00348606]
[1757321889408,1.21424181,4302.6,4302.5,0.00348606]
[1757321890898,1.21424181,4302.6,4302.5,0.21738606]
[1757321891907,1.21424181,4302.6,4302.5,0.00348606]
[1757321897706,1.21424181,4302.6,4301.5,0.513]
[1757321897707,0.7177,4301.6,4301.5,0.513]
[1757321897910,1.21424181,4301.6,4301.5,0.513]
[1757321900409,1.21424181,4301.6,4301.5,0.7102]
[1757321901504,0.4171,4301.4,4301.3,3.5653]
[1757321901705,0.7177,4301.4,4301.3,3.9764]
[1757321901905,0.7177,4301.4,4301.3,3.918]
[1757321902303,1.21433188,4301.4,4301.3,3.2078]
[1757321902908,1.21433188,4301.4,4301.3,3.7208]
[1757321903114,1.21433188,4301.4,4301.3,3.918]
[1757321903517,0.49663188,4301.4,4301.3,3.918]
[1757321903716,0.236,4301.5,4301.3,3.918]
[1757321903912,0.236,4301.5,4301.4,0.2991]
[1757321904112,0.236,4301.5,4301.4,0.7102]
[1757321904510,0.73367671,4301.5,4301.4,0.7102]
[1757321905825,1.23507671,4301.5,4301.4,0.7102]
[1757321907321,0.7374,4301.5,4301.4,0.7102]
[1757321915633,3.3266,4302.0,4301.4,0.7102]
[1757321915836,3.3266,4302.0,4301.3,3.2078]
[1757321915837,0.49745883,4301.9,4301.8,0.4135]
[1757321916134,1.02225883,4301.9,4301.8,0.7116]
[1757321916334,1.23055883,4301.9,4301.8,0.7116]
[1757321920831,1.23055883,4301.9,4301.8,3.9194]
[1757321923237,0.4147,4301.4,4301.3,3.7159]
[1757321923539,0.7331,4301.4,4301.3,3.9194]
[1757321924845,0.3184,4301.7,4301.3,3.9194]
[1757321925043,0.236,4302.1,4301.3,3.9194]
[1757321925044,0.49816046,4301.6,4301.5,0.8307]
[1757321925743,0.236,4302.1,4301.5,0.8307]
[1757321925744,0.236,4302.1,4302.0,0.8307]
[1757321925934,0.73425152,4302.1,4302.0,4.0385]
[1757321926134,0.49825152,4302.1,4302.0,4.0385]
[1757321926343,0.49837847,4302.1,4302.0,3.7404]
[1757321926942,0.49837847,4302.1,4302.0,4.0385]
[1757321927542,1.02317847,4302.1,4302.0,4.0385]
[1757321928549,0.49837847,4302.1,4302.0,4.0385]
[1757321928748,0.70667847,4302.1,4302.0,3.9194]
[1757321929345,0.49837847,4302.1,4302.0,3.2078]
[1757321936456,0.236,4302.8,4302.0,3.2078]
[1757321936748,0.49819379,4302.7,4302.0,3.2078]
[1757321936952,0.49819379,4302.6,4302.0,3.2078]
[1757321937147,0.49819379,4302.5,4302.0,3.2078]
[1757321937347,0.49819379,4302.4,4302.0,3.2078]
[1757321937555,0.236,4302.8,4302.0,3.2078]
[1757321937556,0.49819379,4302.3,4302.0,3.2078]
[1757321937854,0.236,4302.8,4302.0,3.2078]
[1757321938043,0.49816601,4302.7,4302.0,3.2078]
[1757321938244,0.49816601,4302.6,4302.0,3.2078]
[1757321938443,0.49816601,4302.5,4302.0,3.2078]
[1757321938650,0.49816601,4302.4,4302.0,3.2078]
[1757321938850,0.49816601,4302.3,4302.0,3.2078]
[1757321939056,0.47190606,4303.0,4302.0,3.2078]
[1757321939255,0.49813065,4302.9,4302.0,3.2078]
[1757321939449,0.49813065,4302.8,4302.0,3.2078]
[1757321939648,0.49813065,4302.7,4302.0,3.2078]
[1757321939857,0.49813065,4302.6,4302.0,3.2078]
[1757321940156,0.49813065,4302.5,4302.0,3.2078]
[1757321940353,0.49813065,4302.4,4302.0,3.2078]
[1757321940662,0.23948606,4303.0,4302.1,1.48394091]
[1757321940861,0.49806994,4302.9,4302.5,3.2078]
[1757321941054,0.49806994,4302.8,4302.5,3.2078]
[1757321941356,0.00348606,4303.0,4302.5,3.4438]
[1757321943458,0.00348606,4303.0,4302.6,0.23241]
[1757321943653,0.00348606,4303.0,4302.7,0.236]
[1757321944458,0.00348606,4303.0,4302.5,3.2078]
[1757321944959,0.00348606,4303.0,4302.6,0.236]
[1757321945457,0.20318606,4303.0,4302.9,0.4015]
[1757321945658,0.20318606,4303.0,4302.9,0.7009]
[1757321946064,0.49558606,4303.0,4302.9,0.7009]
[1757321946562,0.61698606,4303.0,4302.9,0.2046]
[1757321946955,0.61698606,4303.0,4302.9,0.7009]
[1757321948560,0.49558606,4303.0,4302.9,0.7009]
[1757321953557,0.99276888,4303.0,4302.9,0.7009]
[1757321955367,0.2924,4303.8,4303.0,0.121]
[1757321955567,0.4921,4303.8,4303.7,3.4015]
[1757321955868,0.6135,4303.5,4303.4,0.1937]
[1757321964876,0.6135,4303.5,4303.2,3.2078]
[1757321964877,0.2924,4303.4,4303.2,3.2078]
[1757321965079,0.4921,4303.3,4303.2,3.2078]
[1757321967376,0.9876486,4303.3,4303.2,3.2078]
[1757321969177,0.9876486,4303.3,4303.2,3.4015]
[1757321973475,0.3745486,4303.3,4303.2,3.5951]
[1757321973678,0.1214,4304.5,4303.2,8.06247999]
[1757321973982,0.1214,4304.5,4304.4,3.2078]
[1757321974184,0.6135,4304.5,4304.4,3.4438]
[1757321974383,0.6135,4304.5,4304.4,3.2078]
[1757321974584,0.6135,4304.5,4304.4,3.4438]
[1757321976278,0.4138,4304.5,4304.4,3.4438]
[1757321978980,0.4138,4304.5,4304.4,3.2078]
[1757321979191,0.4138,4304.5,4304.4,3.4438]
[1757321985787,0.2924,4304.5,4304.4,3.4438]
[1757321988394,0.4215,4304.5,4304.4,3.4438]
[1757321989396,0.3218,4304.8,4304.4,3.4438]
[1757321989595,0.1214,4305.0,4304.4,3.4438]
[1757321989796,0.8642,4305.0,4304.9,3.2078]
[1757321994795,0.6584,4305.0,4304.9,3.2078]
[1757321995391,0.8642,4305.0,4304.9,3.2078]
[1757321998895,0.8642,4305.0,4304.7,0.0696]
[1757322001696,0.8642,4305.0,4303.8,3.2078]
[1757322001697,0.7428,4303.9,4303.8,3.2078]
[1757322003901,0.7428,4303.9,4303.8,3.3181]
[1757322005188,0.3218,4304.3,4303.9,0.0689]
[1757322005398,4.69645153,4304.4,4304.3,0.2216]
[1757322005399,3.642,4304.4,4304.3,0.2216]
[1757322005703,3.8578,4304.4,4303.8,3.2774]
[1757322006010,0.6148,4304.0,4303.9,0.2226]
[1757322007091,0.8306,4304.0,4303.9,0.2226]
[1757322007793,0.2971,4303.9,4303.8,3.2078]
[1757322008000,0.4953,4303.3,4303.2,3.4304]
[1757322008800,0.7111,4303.3,4303.2,3.6664]
[1757322009799,0.7111,4303.3,4303.2,3.4304]
[1757322010708,0.4953,4303.3,4303.2,3.5]
[1757322014412,0.2971,4303.3,4303.2,3.5]
[1757322017000,0.4953,4303.3,4303.2,3.5]
[1757322017201,0.7111,4303.3,4303.2,3.4304]
[1757322017403,0.7111,4303.3,4303.2,3.3191]
[1757322017704,0.7111,4303.3,4303.2,3.2078]
[1757322017902,0.2971,4303.3,4303.2,3.5]
[1757322018098,0.2971,4303.5,4303.3,0.0696]
[1757322018304,0.2971,4303.9,4303.8,0.2226]
[1757322018509,0.2971,4303.9,4303.8,0.2922]
[1757322019602,0.2971,4303.9,4303.8,0.2226]
[1757322019603,0.4953,4303.9,4303.8,0.2226]
[1757322019803,0.7111,4303.9,4303.8,0.2226]
[1757322020312,0.7111,4303.9,4303.8,0.1113]
[1757322020512,0.2971,4303.8,4303.7,3.2078]
[1757322020808,0.7111,4303.8,4303.7,3.3191]
[1757322021210,0.7111,4303.8,4303.7,3.2078]
[1757322027304,0.7111,4303.8,4303.0,0.0696]
[1757322027305,0.1195,4303.5,4303.2,3.2078]
[1757322027609,0.8306,4303.5,4303.4,0.1113]
[1757322030915,0.414,4303.3,4303.2,3.2078]
[1757322031111,0.7111,4303.3,4303.2,3.2078]
[1757322032213,4.7111,4303.3,4303.2,3.2078]
[1757322033217,4.7111,4303.3,4302.6,3.2078]
[1757322033520,0.7111,4302.7,4302.6,3.3193]
[1757322034222,0.7111,4302.7,4302.6,3.4308]
[1757322038325,0.7111,4302.7,4300.8,0.18479253]
[1757322038326,3.8568,4302.7,4301.8,0.0696]
[1757322038524,0.8218,4302.0,4301.9,0.2218]
[1757322040731,0.6252,4302.0,4301.9,0.2914]
[1757322041732,0.6252,4302.0,4301.9,0.2218]
[1757322041928,0.8218,4302.0,4301.9,0.1109]
[1757322042736,0.6252,4301.5,4301.4,3.4992]
[1757322043733,0.4153,4301.5,4301.4,3.4992]
[1757322048433,0.6252,4301.5,4301.4,3.4992]
[1757322048734,0.7414,4301.5,4301.4,3.4296]
[1757322049232,0.938,4301.5,4301.4,3.4296]
[1757322049428,0.938,4301.5,4300.9,0.235]
[1757322049622,0.6252,4301.0,4300.9,0.4568]
[1757322050434,0.6252,4301.0,4300.9,0.5264]
[1757322051028,0.4153,4301.0,4300.9,0.5264]
[1757322051330,0.4153,4301.0,4300.9,0.2914]
[1757322051529,0.4153,4301.0,4300.9,0.5264]
[1757322053836,0.4153,4301.0,4300.9,0.2914]
[1757322054039,0.4153,4301.0,4300.9,0.5264]
[1757322054434,0.6252,4301.0,4300.9,0.4568]
[1757322055140,0.6252,4301.0,4300.9,0.5264]
[1757322055834,0.4153,4301.0,4300.9,0.5264]
[1757322060544,0.4153,4301.0,4300.9,1.35750999]
[1757322060742,0.7414,4301.0,4300.9,1.28790999]
[1757322060939,0.6456,4301.0,4300.8,4.03890999]
[1757322061134,0.6989,4300.9,4300.8,3.4438]
[1757322061641,0.6989,4300.9,4300.8,3.2078]
[1757322062043,0.6989,4300.9,4300.8,3.3187]
[1757322062245,0.6989,4300.9,4300.8,3.4296]
[1757322062441,0.5023,4300.9,4300.8,3.4992]
[1757322062641,0.5023,4300.9,4300.8,3.4296]
[1757322064350,0.2924,4300.9,4300.8,3.4992]
[1757322064752,0.4086,4301.0,4300.9,0.2914]
[1757322064951,0.4086,4301.0,4300.9,1.12295279]
[1757322065647,0.4086,4301.0,4300.9,1.35895279]
[1757322066354,0.1162,4301.0,4300.9,1.35895279]
[1757322066855,0.1162,4301.0,4300.9,0.5274]
[1757322067455,0.4325,4301.0,4300.9,0.5274]
[1757322068459,0.1162,4301.0,4300.9,1.77892091]
[1757322069451,0.0466,4301.0,4300.9,6.01143091]
[1757322069757,0.3163,4301.5,4300.9,4.4578]
[1757322069958,0.3163,4301.5,4301.3,1.24862163]
[1757322070158,0.443,4301.5,4301.4,0.236]
[1757322072560,0.443,4301.5,4301.4,1.48462163]
[1757322072960,0.443,4301.5,4301.4,0.236]
[1757322073162,0.443,4301.5,4301.4,1.48479786]
[1757322074365,0.443,4301.5,4301.4,0.236]
[1757322074567,0.443,4301.5,4301.4,1.4845586]
[1757322078666,0.3629,4301.9,4301.4,5.4845586]
[1757322078971,0.3629,4301.9,4301.8,4.4563586]
[1757322079169,0.3163,4301.9,4301.8,4.6913586]
[1757322080170,0.7271,4301.9,4301.8,4.4563586]
[1757322080370,0.7271,4301.9,4301.8,4.6913586]
[1757322080571,0.7271,4301.9,4301.8,3.4428]
[1757322080868,0.3163,4301.8,4301.7,1.2485586]
[1757322081066,0.1267,4301.5,4301.3,4.03954849]
[1757322081271,0.7271,4301.4,4301.3,3.2078]
[1757322083965,4.7271,4301.4,4301.3,3.2078]
[1757322084165,4.7271,4301.4,4301.0,0.00348606]
[1757322084368,0.7271,4301.4,4301.0,0.00348606]
[1757322085672,0.7271,4301.4,4301.1,0.0071]
[1757322098073,0.7271,4301.4,4301.0,0.00348606]
[1757322098274,0.7254,4300.9,4300.8,3.2078]
[1757322102986,0.7254,4300.9,4300.8,4.03954849]
[1757322103380,4.64391,4300.9,4300.3,0.83174849]
[1757322103575,0.7254,4300.3,4300.2,0.83174849]
[1757322104082,0.7254,4300.3,4300.1,4.03954849]
[1757322104286,0.7254,4300.2,4300.1,3.2078]
[1757322105385,0.7254,4300.2,4300.1,3.4088]
[1757322105585,0.7254,4300.2,4300.1,3.6043]
[1757322106588,0.7254,4300.2,4300.1,3.9146]
[1757322108902,0.7254,4300.2,4300.1,3.6043]
[1757322110990,0.314,4300.2,4300.1,3.9146]
[1757322111289,0.5395,4301.0,4300.9,0.3965]
[1757322111790,0.8535,4301.0,4300.9,0.201]
[1757322112184,0.8535,4301.0,4300.9,0.3965]
[1757322112379,0.8535,4301.0,4300.9,0.201]
[1757322112588,0.8535,4301.0,4300.3,0.83251788]
[1757322112788,0.8535,4301.0,4300.3,1.77431788]
[1757322112789,0.5105,4300.4,4300.3,1.77431788]
[1757322113787,0.5105,4300.4,4300.3,1.53931788]
[1757322113990,0.7254,4300.4,4300.3,1.46401788]
[1757322114188,0.4114,4300.4,4300.2,0.83251788]
[1757322114394,0.314,4300.3,4300.2,0.83251788]
[1757322114590,0.7254,4300.3,4300.2,0.83251788]
[1757322115690,0.7254,4300.3,4300.1,3.2078]
[1757322115891,0.314,4300.2,4300.1,3.2078]
[1757322116095,0.7254,4300.2,4300.1,3.2078]
[1757322116791,0.8535,4300.0,4299.9,0.83251788]
[1757322119192,0.8535,4300.0,4299.8,0.83251788]
[1757322119397,0.7254,4299.9,4299.8,1.03351788]
[1757322120196,0.7254,4299.9,4299.8,0.201]
[1757322121103,0.7254,4299.9,4299.8,1.03339604]
[1757322121294,0.7254,4299.9,4299.8,0.201]
[1757322122101,0.7254,4299.9,4299.8,1.03342598]
[1757322122301,0.7254,4299.9,4299.8,0.201]
[1757322123803,0.7254,4299.9,4299.8,0.7068]
[1757322124205,0.7254,4299.9,4299.8,0.3965]
[1757322126703,0.7254,4299.9,4299.8,0.693]
[1757322126907,0.5105,4299.9,4299.8,0.693]
[1757322128109,0.7197,4299.9,4299.8,0.693]
[1757322128793,0.314,4299.9,4299.8,0.693]
[1757322129201,0.1162,4300.0,4299.9,0.2965]
[1757322129407,0.1162,4300.0,4299.9,2.4235186]
[1757322129605,0.1162,4300.0,4299.9,2.1909586]
[1757322130208,0.1162,4300.0,4299.9,0.9424]
[1757322131008,0.1162,4300.0,4299.9,4.9424]
[1757322132802,0.1162,4300.0,4299.9,0.9424]
[1757322137615,0.1162,4300.0,4299.9,2.19321426]
[1757322138508,0.4253,4300.0,4299.9,2.19321426]
[1757322139713,0.4253,4300.0,4299.9,0.9424]
[1757322141413,0.4253,4300.0,4299.9,2.19321426]
[1757322142003,0.1162,4300.0,4299.9,1.95821426]
[1757322142208,0.1162,4300.0,4299.9,2.19321426]
[1757322143017,0.5155,4300.9,4300.8,0.4109]
[1757322143215,0.5155,4300.9,4300.8,4.45256258]
[1757322143611,0.7247,4300.9,4300.8,4.45256258]
[1757322146417,0.7247,4300.9,4300.8,3.6187]
[1757322148820,0.7247,4300.9,4300.8,3.8377]
[1757322149416,0.7247,4300.9,4300.8,3.6187]
[1757322153236,0.7247,4300.9,4300.7,0.235]
[1757322156134,0.7247,4300.9,4300.8,0.1981]
[1757322158436,0.7247,4300.9,4300.8,0.4034]
[1757322162943,0.7247,4300.9,4300.8,0.6225]
[1757322163137,0.5155,4300.9,4300.8,0.6225]
[1757322163338,0.5155,4300.9,4300.8,0.4034]
[1757322163638,0.7106,4300.9,4300.8,0.4034]
[1757322166839,0.4015,4300.9,4300.7,4.04166258]
[1757322167144,0.7006,4300.8,4300.7,4.44936258]
[1757322167444,0.7006,4300.8,4300.7,4.66846258]
[1757322168238,0.7006,4300.8,4300.7,4.90346258]
[1757322170246,0.7006,4300.8,4300.7,4.0696]
[1757322171350,0.307,4300.8,4300.7,4.0696]
[1757322171539,0.2451,4301.2,4301.1,0.4077]
[1757322171741,0.1267,4301.5,4301.1,0.4077]
[1757322171936,0.20198606,4301.7,4301.6,0.6268]
[1757322172147,0.31048606,4301.7,4301.6,0.6268]
[1757322172750,0.50898606,4301.7,4301.6,0.6268]
[1757322173544,0.70408606,4301.7,4301.6,0.4077]
[1757322176745,0.70408606,4301.7,4301.6,0.6268]
[1757322177753,0.31048606,4301.7,4301.6,0.6268]
[1757322177949,0.00348606,4301.7,4301.6,0.6268]
[1757322178354,0.00348606,4301.7,4301.6,1.69319251]
[1757322178744,0.00348606,4301.7,4301.6,1.46072251]
[1757322178951,0.31048606,4301.7,4301.6,1.46072251]
[1757322179251,0.31048606,4301.7,4301.6,0.6268]
[1757322180353,0.00348606,4301.7,4301.6,0.6268]
[1757322180553,0.0466,4301.9,4301.6,5.47409251]
[1757322180746,0.0466,4301.9,4301.8,0.6268]
[1757322180952,0.1258,4302.5,4301.8,0.4077]
[1757322181152,0.8264,4302.5,4302.4,0.2024]
[1757322183359,0.8264,4302.5,4302.2,0.235]
[1757322183555,0.8264,4302.5,4302.0,0.2191]
[1757322183556,0.8264,4302.5,4301.8,0.2191]
[1757322183760,0.5186,4301.5,4301.3,3.2078]
[1757322183953,0.7006,4301.4,4301.3,3.4428]
[1757322184155,0.7006,4301.4,4301.3,3.6452]
[1757322185058,0.7006,4301.4,4301.3,3.8505]
[1757322185457,0.5055,4301.4,4301.3,4.0696]
[1757322185757,0.3087,4302.4,4301.3,7.67529]
[1757322185964,0.7099,4302.4,4302.3,0.2069]
[1757322186154,0.7099,4302.4,4302.3,0.4098]
[1757322186756,0.3087,4302.4,4302.3,0.6289]
[1757322187256,0.3087,4302.6,4302.3,0.4098]
[1757322187458,0.3087,4302.6,4302.5,0.4098]
[1757322187759,0.0466,4302.7,4302.5,0.6289]
[1757322187964,0.0466,4302.7,4302.6,0.6289]
[1757322188261,0.125,4303.0,4302.6,0.4098]
[1757322188456,0.125,4303.0,4302.8,0.4098]
[1757322188457,0.3087,4302.9,4302.8,0.4098]
[1757322188652,0.5093,4302.9,4302.8,0.4098]
[1757322189055,0.5093,4302.9,4302.8,0.6289]
[1757322189454,0.3087,4302.9,4302.8,0.6289]
[1757322190263,0.0466,4303.0,4302.9,0.2191]
[1757322190469,0.0466,4303.0,4302.9,0.6289]
[1757322190870,0.235,4303.7,4303.3,0.4098]
[1757322190871,0.5093,4303.4,4303.3,0.4098]
[1757322191072,0.5093,4303.4,4303.3,0.6289]
[1757322191768,0.3087,4303.4,4303.3,3.8367]
[1757322194074,0.0466,4303.5,4303.4,0.2191]
[1757322194273,0.1192,4304.0,4303.4,0.6289]
[1757322194575,0.3198,4304.0,4303.9,0.2069]
[1757322194772,0.5204,4304.0,4303.9,0.4098]
[1757322195169,0.8291,4304.0,4303.9,0.4098]
[1757322196076,0.8291,4304.0,4303.9,0.6289]
[1757322196376,0.8291,4304.0,4303.9,0.4098]
[1757322196979,0.8291,4304.0,4303.9,0.2069]
[1757322199378,0.8291,4304.0,4303.9,0.6289]
[1757322199576,0.3087,4304.0,4303.9,0.6289]
[1757322200177,0.6285,4304.0,4303.9,0.6289]
[1757322202384,0.6285,4304.0,4303.9,3.8367]
[1757322203877,0.8291,4304.0,4303.9,3.6176]
[1757322206689,0.8291,4304.0,4303.9,3.8526]
[1757322206985,0.8291,4304.0,4303.4,3.2078]